[Event "Early-Titled-Tuesday-Blitz-February-20-2024"]
[Site "Chess.com"]
[Date "2024.02.20"]
[Round "9"]
[White "Grandelicious"]
[Black "Ural_bogatyr"]
[Result "1-0"]
[WhiteElo "2904"]
[BlackElo "2616"]
[TimeControl "180+1"]
[EndTime "9:46:53 PST"]
[Termination "Grandelicious won on time"]

1. d4 {[%clk 0:03:00.9]} 1... Nf6 {[%clk 0:02:59.6]} 2. Nf3 {[%clk 0:03:01.4]}
2... d5 {[%clk 0:02:59.5]} 3. c3 {[%clk 0:03:02.1]} 3... c5 {[%clk 0:02:59.1]}
4. e3 {[%clk 0:02:59.3]} 4... Nc6 {[%clk 0:02:58.9]} 5. dxc5 {[%clk 0:02:58.8]}
5... a5 {[%clk 0:02:58.2]} 6. Bb5 {[%clk 0:02:54.7]} 6... Bd7 {[%clk 0:02:45.8]}
7. c4 {[%clk 0:02:32.3]} 7... e6 {[%clk 0:02:33.2]} 8. cxd5 {[%clk 0:02:25.8]}
8... Nxd5 {[%clk 0:02:31.2]} 9. e4 {[%clk 0:02:19.6]} 9... Nf6 {[%clk
0:02:29.4]} 10. Nc3 {[%clk 0:02:17.5]} 10... Bxc5 {[%clk 0:02:28.2]} 11. O-O
{[%clk 0:02:18.2]} 11... O-O {[%clk 0:02:26.5]} 12. e5 {[%clk 0:02:18]} 12...
Ng4 {[%clk 0:01:58.5]} 13. Qe2 {[%clk 0:02:02]} 13... Qb6 {[%clk 0:01:40.8]} 14.
Na4 {[%clk 0:01:49.6]} 14... Qa7 {[%clk 0:01:25.8]} 15. Bf4 {[%clk 0:01:14.9]}
15... Rfd8 {[%clk 0:00:45.6]} 16. Bg3 {[%clk 0:01:11.9]} 16... Nh6 {[%clk
0:00:35.4]} 17. Nxc5 {[%clk 0:01:05.6]} 17... Qxc5 {[%clk 0:00:34.8]} 18. Rac1
{[%clk 0:01:06.1]} 18... Qb6 {[%clk 0:00:34.5]} 19. Bh4 {[%clk 0:01:03.3]} 19...
Rdc8 {[%clk 0:00:23.4]} 20. Rcd1 {[%clk 0:01:02.3]} 20... Be8 {[%clk 0:00:19.9]}
21. Bd3 {[%clk 0:01:02.2]} 21... Nf5 {[%clk 0:00:18.4]} 22. Bg5 {[%clk 0:00:48]}
22... Ncd4 {[%clk 0:00:15.5]} 23. Nxd4 {[%clk 0:00:46.6]} 23... Nxd4 {[%clk
0:00:14.9]} 24. Qg4 {[%clk 0:00:43.3]} 24... Nc6 {[%clk 0:00:11]} 25. Bf6 {[%clk
0:00:40.9]} 25... g6 {[%clk 0:00:10.7]} 26. Be4 {[%clk 0:00:34.2]} 26... Qb4
{[%clk 0:00:09.7]} 27. Rd3 {[%clk 0:00:31.1]} 27... h5 {[%clk 0:00:07.2]} 28.
Qg5 {[%clk 0:00:26.2]} 28... Qf8 {[%clk 0:00:06.9]} 29. Rh3 {[%clk 0:00:25.6]}
1-0

[Event "Early-Titled-Tuesday-Blitz-February-20-2024"]
[Site "Chess.com"]
[Date "2024.02.20"]
[Round "9"]
[White "Young_Catalan_Player09"]
[Black "Tocras"]
[Result "1-0"]
[WhiteElo "2583"]
[BlackElo "2705"]
[TimeControl "180+1"]
[EndTime "9:46:56 PST"]
[Termination "Young_Catalan_Player09 won by resignation"]

1. Nf3 {[%clk 0:03:00.9]} 1... Nf6 {[%clk 0:02:55.6]} 2. d4 {[%clk 0:02:58.3]}
2... b6 {[%clk 0:02:55.3]} 3. Bf4 {[%clk 0:02:58]} 3... Bb7 {[%clk 0:02:55.7]}
4. e3 {[%clk 0:02:58.2]} 4... e6 {[%clk 0:02:55.3]} 5. Nbd2 {[%clk 0:02:57.9]}
5... d5 {[%clk 0:02:55.7]} 6. Bd3 {[%clk 0:02:56.8]} 6... Be7 {[%clk 0:02:52.7]}
7. O-O {[%clk 0:02:56.3]} 7... Nh5 {[%clk 0:02:50.1]} 8. Be5 {[%clk 0:02:55.1]}
8... Nd7 {[%clk 0:02:48.6]} 9. c3 {[%clk 0:02:54.2]} 9... Nxe5 {[%clk
0:02:43.3]} 10. Nxe5 {[%clk 0:02:53.9]} 10... g6 {[%clk 0:02:32.5]} 11. Bb5+
{[%clk 0:02:53.7]} 11... Kf8 {[%clk 0:02:29.5]} 12. Bc6 {[%clk 0:02:37.4]} 12...
Qc8 {[%clk 0:02:20.2]} 13. b4 {[%clk 0:02:34.1]} 13... f6 {[%clk 0:02:16.6]} 14.
Bxb7 {[%clk 0:02:25.1]} 14... Qxb7 {[%clk 0:02:17.5]} 15. Nd3 {[%clk 0:02:24.6]}
15... a5 {[%clk 0:02:11.4]} 16. a3 {[%clk 0:02:23.1]} 16... Kf7 {[%clk
0:02:10.9]} 17. Qb3 {[%clk 0:02:21.4]} 17... Ng7 {[%clk 0:01:48.5]} 18. c4
{[%clk 0:02:14.4]} 18... dxc4 {[%clk 0:01:46.7]} 19. Nxc4 {[%clk 0:02:15.3]}
19... axb4 {[%clk 0:01:43.6]} 20. axb4 {[%clk 0:02:15]} 20... Qd5 {[%clk
0:01:42.8]} 21. Qc3 {[%clk 0:02:13.6]} 21... Qb5 {[%clk 0:01:31.1]} 22. f4
{[%clk 0:01:44.5]} 22... Rhd8 {[%clk 0:01:29.9]} 23. g4 {[%clk 0:01:38.4]} 23...
Kg8 {[%clk 0:01:19.7]} 24. Nd2 {[%clk 0:01:37.1]} 24... h5 {[%clk 0:01:11.3]}
25. h3 {[%clk 0:01:35.7]} 25... c6 {[%clk 0:00:54.6]} 26. Rfc1 {[%clk
0:01:29.3]} 26... Rxa1 {[%clk 0:00:51.7]} 27. Rxa1 {[%clk 0:01:29.3]} 27... hxg4
{[%clk 0:00:48.3]} 28. hxg4 {[%clk 0:01:26.9]} 28... Qd5 {[%clk 0:00:46.9]} 29.
Rc1 {[%clk 0:01:18.7]} 29... Rc8 {[%clk 0:00:39.7]} 30. Qb3 {[%clk 0:01:14.5]}
30... Qd7 {[%clk 0:00:39.2]} 31. Nc4 {[%clk 0:01:11.8]} 31... Bd8 {[%clk
0:00:34.7]} 32. g5 {[%clk 0:00:56.6]} 32... Qd5 {[%clk 0:00:20.7]} 33. gxf6
{[%clk 0:00:53.7]} 33... Bxf6 {[%clk 0:00:20.6]} 34. Qc3 {[%clk 0:00:52.1]}
34... Qf3 {[%clk 0:00:18.4]} 35. Qd2 {[%clk 0:00:47.1]} 35... Nf5 {[%clk
0:00:17.8]} 36. Qf2 {[%clk 0:00:44.7]} 36... Qxf2+ {[%clk 0:00:16.9]} 37. Kxf2
{[%clk 0:00:44.5]} 37... b5 {[%clk 0:00:17.7]} 38. Nce5 {[%clk 0:00:42.1]} 38...
Ra8 {[%clk 0:00:17.6]} 39. Rxc6 {[%clk 0:00:40.9]} 39... Bh4+ {[%clk 0:00:17]}
40. Kf3 {[%clk 0:00:40.1]} 40... Ra2 {[%clk 0:00:17.1]} 41. Rxe6 {[%clk
0:00:38.8]} 41... Rf2+ {[%clk 0:00:15.7]} 42. Ke4 {[%clk 0:00:39.2]} 42... Rd2
{[%clk 0:00:10.2]} 43. Rxg6+ {[%clk 0:00:38]} 43... Kh7 {[%clk 0:00:09.9]} 44.
Kxf5 {[%clk 0:00:37.4]} 1-0

[Event "Early-Titled-Tuesday-Blitz-February-20-2024"]
[Site "Chess.com"]
[Date "2024.02.20"]
[Round "9"]
[White "BozeKat"]
[Black "fabianvivasz"]
[Result "1-0"]
[WhiteElo "2156"]
[BlackElo "2362"]
[TimeControl "180+1"]
[EndTime "9:46:58 PST"]
[Termination "BozeKat won on time"]

1. c4 {[%clk 0:02:46.8]} 1... c6 {[%clk 0:02:58.1]} 2. d4 {[%clk 0:02:45.8]}
2... d5 {[%clk 0:02:58.7]} 3. Nf3 {[%clk 0:02:45.9]} 3... Nf6 {[%clk 0:02:59.1]}
4. e3 {[%clk 0:02:46.4]} 4... e6 {[%clk 0:02:57]} 5. Nbd2 {[%clk 0:02:46.1]}
5... Nbd7 {[%clk 0:02:53.5]} 6. Bd3 {[%clk 0:02:46.1]} 6... Bd6 {[%clk
0:02:46.9]} 7. O-O {[%clk 0:02:45.9]} 7... e5 {[%clk 0:02:39.1]} 8. e4 {[%clk
0:02:44.1]} 8... O-O {[%clk 0:02:26.2]} 9. cxd5 {[%clk 0:02:42.3]} 9... cxd5
{[%clk 0:02:24.6]} 10. exd5 {[%clk 0:02:35.9]} 10... exd4 {[%clk 0:02:09]} 11.
Nc4 {[%clk 0:02:35]} 11... Nb6 {[%clk 0:02:00.5]} 12. Nxd6 {[%clk 0:02:14.8]}
12... Qxd6 {[%clk 0:02:01.4]} 13. Nxd4 {[%clk 0:02:10.8]} 13... Qxd5 {[%clk
0:01:45]} 14. Be3 {[%clk 0:01:57.8]} 14... Ng4 {[%clk 0:01:35.8]} 15. Qd2 {[%clk
0:01:50]} 15... Rd8 {[%clk 0:01:20.7]} 16. Rfd1 {[%clk 0:01:40.3]} 16... Nxe3
{[%clk 0:01:12.1]} 17. Qxe3 {[%clk 0:01:36.7]} 17... Bg4 {[%clk 0:01:11]} 18. f3
{[%clk 0:01:33.3]} 18... Bh5 {[%clk 0:00:53.2]} 19. Be4 {[%clk 0:01:32]} 19...
Qd7 {[%clk 0:00:22.8]} 20. Rd3 {[%clk 0:01:26.5]} 20... Bg6 {[%clk 0:00:20.5]}
21. Rad1 {[%clk 0:01:16.9]} 21... Nc4 {[%clk 0:00:20]} 22. Qe2 {[%clk
0:01:08.1]} 22... Qe7 {[%clk 0:00:17.3]} 23. b3 {[%clk 0:00:56.9]} 23... Bxe4
{[%clk 0:00:16.4]} 24. bxc4 {[%clk 0:00:49.4]} 24... Bxd3 {[%clk 0:00:11.5]} 25.
Qxe7 {[%clk 0:00:47.4]} 25... Rxd4 {[%clk 0:00:12.1]} 26. Qxb7 {[%clk
0:00:41.5]} 26... Rad8 {[%clk 0:00:12]} 27. c5 {[%clk 0:00:36.8]} 27... h6
{[%clk 0:00:07.5]} 28. c6 {[%clk 0:00:36.8]} 28... Bf5 {[%clk 0:00:04.7]} 29.
Rxd4 {[%clk 0:00:33.6]} 29... Rxd4 {[%clk 0:00:05.6]} 30. c7 {[%clk 0:00:33.5]}
30... Rc4 {[%clk 0:00:05.4]} 31. Qxa7 {[%clk 0:00:32]} 31... Be6 {[%clk
0:00:04.2]} 32. a4 {[%clk 0:00:29.7]} 32... g5 {[%clk 0:00:03.3]} 33. a5 {[%clk
0:00:29.6]} 33... Rc1+ {[%clk 0:00:01.7]} 34. Kf2 {[%clk 0:00:29.4]} 34... Rc2+
{[%clk 0:00:02.6]} 35. Ke3 {[%clk 0:00:27.8]} 35... Rxg2 {[%clk 0:00:01.1]} 36.
c8=Q+ {[%clk 0:00:27.4]} 36... Bxc8 {[%clk 0:00:01]} 37. Qb8 {[%clk 0:00:27.2]}
37... Rc2 {[%clk 0:00:01.1]} 38. a6 {[%clk 0:00:27.2]} 1-0

[Event "Early-Titled-Tuesday-Blitz-February-20-2024"]
[Site "Chess.com"]
[Date "2024.02.20"]
[Round "9"]
[White "platy3"]
[Black "Kobalia"]
[Result "0-1"]
[WhiteElo "2945"]
[BlackElo "2811"]
[TimeControl "180+1"]
[EndTime "9:47:03 PST"]
[Termination "Kobalia won on time"]

1. e4 {[%clk 0:03:00.9]} 1... c5 {[%clk 0:02:59.5]} 2. Nf3 {[%clk 0:03:01.3]}
2... e6 {[%clk 0:03:00]} 3. d4 {[%clk 0:03:01.5]} 3... cxd4 {[%clk 0:03:00.4]}
4. Nxd4 {[%clk 0:03:02.4]} 4... Nc6 {[%clk 0:03:00.8]} 5. Nc3 {[%clk 0:03:02.2]}
5... a6 {[%clk 0:03:01.3]} 6. Be3 {[%clk 0:02:57.3]} 6... Nf6 {[%clk 0:03:00.1]}
7. Qf3 {[%clk 0:02:53.3]} 7... Bb4 {[%clk 0:02:57.7]} 8. Bd3 {[%clk 0:02:35.2]}
8... d5 {[%clk 0:02:42.4]} 9. O-O {[%clk 0:01:44.5]} 9... dxe4 {[%clk
0:02:35.8]} 10. Nxc6 {[%clk 0:01:44.4]} 10... exf3 {[%clk 0:02:29.3]} 11. Nxd8
{[%clk 0:01:44]} 11... Kxd8 {[%clk 0:02:29.5]} 12. Rfd1 {[%clk 0:01:37.7]} 12...
Ke7 {[%clk 0:02:28.8]} 13. a3 {[%clk 0:01:35.2]} 13... Bd6 {[%clk 0:02:28.7]}
14. gxf3 {[%clk 0:01:22.6]} 14... Bd7 {[%clk 0:01:59.5]} 15. Be4 {[%clk
0:01:17.3]} 15... Bc6 {[%clk 0:01:45.4]} 16. Bxc6 {[%clk 0:01:17.1]} 16... bxc6
{[%clk 0:01:46.3]} 17. Rd3 {[%clk 0:01:17.6]} 17... Rhd8 {[%clk 0:01:38.2]} 18.
Rad1 {[%clk 0:01:17.1]} 18... Be5 {[%clk 0:01:38.2]} 19. Bc5+ {[%clk 0:01:11.5]}
19... Ke8 {[%clk 0:01:37.2]} 20. Na4 {[%clk 0:01:09.1]} 20... Nd5 {[%clk
0:01:30.4]} 21. Bb6 {[%clk 0:00:42.9]} 21... Nxb6 {[%clk 0:01:25.4]} 22. Nxb6
{[%clk 0:00:42.7]} 22... Rxd3 {[%clk 0:01:09.6]} 23. Rxd3 {[%clk 0:00:43.6]}
23... Rd8 {[%clk 0:01:09.2]} 24. Rxd8+ {[%clk 0:00:42.4]} 24... Kxd8 {[%clk
0:01:10.1]} 25. Nc4 {[%clk 0:00:43.2]} 25... Bf4 {[%clk 0:01:07.4]} 26. h3
{[%clk 0:00:37.2]} 26... Kc7 {[%clk 0:01:06.1]} 27. Kf1 {[%clk 0:00:37.2]} 27...
g5 {[%clk 0:01:05.7]} 28. Ke2 {[%clk 0:00:37.1]} 28... f5 {[%clk 0:01:05.9]} 29.
b4 {[%clk 0:00:29.3]} 29... h5 {[%clk 0:01:04.5]} 30. Kd3 {[%clk 0:00:24]} 30...
h4 {[%clk 0:01:00.6]} 31. Ke2 {[%clk 0:00:22.8]} 31... c5 {[%clk 0:00:57]} 32.
Na5 {[%clk 0:00:15.2]} 32... Kb6 {[%clk 0:00:53.4]} 33. Nb3 {[%clk 0:00:12.8]}
33... Bd6 {[%clk 0:00:47.7]} 34. c3 {[%clk 0:00:11.7]} 34... Kb5 {[%clk
0:00:47.7]} 35. Nd2 {[%clk 0:00:08.3]} 35... Bc7 {[%clk 0:00:43]} 36. Kd3 {[%clk
0:00:08.1]} 36... Ka4 {[%clk 0:00:40.3]} 37. Nc4 {[%clk 0:00:07.8]} 37... g4
{[%clk 0:00:34.5]} 38. fxg4 {[%clk 0:00:07.6]} 38... fxg4 {[%clk 0:00:34.9]} 39.
hxg4 {[%clk 0:00:02.4]} 39... h3 {[%clk 0:00:34.9]} 0-1

[Event "Early-Titled-Tuesday-Blitz-February-20-2024"]
[Site "Chess.com"]
[Date "2024.02.20"]
[Round "9"]
[White "Ariadna_Atreides"]
[Black "emeli_chess"]
[Result "1/2-1/2"]
[WhiteElo "2192"]
[BlackElo "2407"]
[TimeControl "180+1"]
[EndTime "9:47:03 PST"]
[Termination "Game drawn by repetition"]

1. d4 {[%clk 0:03:00.9]} 1... Nf6 {[%clk 0:02:58.7]} 2. Nf3 {[%clk 0:03:01.4]}
2... d5 {[%clk 0:02:58.4]} 3. e3 {[%clk 0:03:01.4]} 3... c5 {[%clk 0:02:57.5]}
4. dxc5 {[%clk 0:02:58.6]} 4... Qa5+ {[%clk 0:02:56.2]} 5. Nbd2 {[%clk
0:02:48.9]} 5... Qxc5 {[%clk 0:02:55.7]} 6. a3 {[%clk 0:02:49]} 6... Bg4 {[%clk
0:02:48]} 7. Be2 {[%clk 0:02:47.4]} 7... Qc7 {[%clk 0:02:46]} 8. h3 {[%clk
0:02:46.5]} 8... Bh5 {[%clk 0:02:43.4]} 9. O-O {[%clk 0:02:44.5]} 9... e6 {[%clk
0:02:43.1]} 10. c4 {[%clk 0:02:40.7]} 10... dxc4 {[%clk 0:02:34.7]} 11. Nxc4
{[%clk 0:02:40.5]} 11... Be7 {[%clk 0:02:25.8]} 12. Qa4+ {[%clk 0:02:35.3]}
12... Nc6 {[%clk 0:02:21]} 13. Nce5 {[%clk 0:02:33.1]} 13... O-O {[%clk
0:02:15.7]} 14. Nxc6 {[%clk 0:02:33]} 14... Qxc6 {[%clk 0:02:09.4]} 15. Qxc6
{[%clk 0:02:32.4]} 15... bxc6 {[%clk 0:02:09.2]} 16. Bd2 {[%clk 0:02:32.9]}
16... Rab8 {[%clk 0:02:04.2]} 17. Bc3 {[%clk 0:02:28.9]} 17... Nd5 {[%clk
0:02:03.7]} 18. Be5 {[%clk 0:02:28.1]} 18... Rb7 {[%clk 0:01:53.5]} 19. b4
{[%clk 0:02:20.1]} 19... f6 {[%clk 0:01:50.5]} 20. Bd4 {[%clk 0:02:15.5]} 20...
e5 {[%clk 0:01:49.2]} 21. Bc5 {[%clk 0:02:15]} 21... Bxc5 {[%clk 0:01:48.4]} 22.
bxc5 {[%clk 0:02:15.2]} 22... Rb2 {[%clk 0:01:42.2]} 23. Bc4 {[%clk 0:02:13.1]}
23... Bxf3 {[%clk 0:01:27.8]} 24. gxf3 {[%clk 0:02:11.6]} 24... Kh8 {[%clk
0:01:17.6]} 25. Rfd1 {[%clk 0:02:03.4]} 25... Nc3 {[%clk 0:01:03.5]} 26. Rd7
{[%clk 0:02:00.8]} 26... Na4 {[%clk 0:00:45.9]} 27. Rxa7 {[%clk 0:01:50.1]}
27... Nxc5 {[%clk 0:00:45.2]} 28. Rc7 {[%clk 0:01:50.7]} 28... Nb3 {[%clk
0:00:32.3]} 29. Bxb3 {[%clk 0:01:49.2]} 29... Rxb3 {[%clk 0:00:31.9]} 30. Rxc6
{[%clk 0:01:50.1]} 30... h5 {[%clk 0:00:26.7]} 31. a4 {[%clk 0:01:44.2]} 31...
Ra8 {[%clk 0:00:26.2]} 32. a5 {[%clk 0:01:44.1]} 32... Ra7 {[%clk 0:00:26.3]}
33. a6 {[%clk 0:01:37.6]} 33... Kh7 {[%clk 0:00:24.4]} 34. Rd1 {[%clk
0:01:23.4]} 34... Ra3 {[%clk 0:00:22.6]} 35. Rdd6 {[%clk 0:01:22.1]} 35... Kg6
{[%clk 0:00:20.4]} 36. Rb6 {[%clk 0:01:19.1]} 36... Kf5 {[%clk 0:00:19.3]} 37.
Kg2 {[%clk 0:01:12.8]} 37... h4 {[%clk 0:00:18.9]} 38. Rdc6 {[%clk 0:00:59.8]}
38... Kg6 {[%clk 0:00:18.1]} 39. Rb7 {[%clk 0:00:52]} 39... R3xa6 {[%clk
0:00:16.5]} 40. Rcc7 {[%clk 0:00:47.5]} 40... Rxb7 {[%clk 0:00:16.4]} 41. Rxb7
{[%clk 0:00:48.2]} 41... Ra3 {[%clk 0:00:16.3]} 42. Rc7 {[%clk 0:00:38.4]} 42...
Rb3 {[%clk 0:00:15.6]} 43. Ra7 {[%clk 0:00:37.8]} 43... Rc3 {[%clk 0:00:15.4]}
44. Rb7 {[%clk 0:00:37.7]} 44... Ra3 {[%clk 0:00:15.2]} 45. Rc7 {[%clk
0:00:37.8]} 45... Rb3 {[%clk 0:00:14.4]} 46. Ra7 {[%clk 0:00:38]} 46... Rc3
{[%clk 0:00:14.4]} 47. Rb7 {[%clk 0:00:38.1]} 47... Ra3 {[%clk 0:00:14.2]}
1/2-1/2

[Event "Early-Titled-Tuesday-Blitz-February-20-2024"]
[Site "Chess.com"]
[Date "2024.02.20"]
[Round "9"]
[White "Raffael89"]
[Black "cmunda"]
[Result "0-1"]
[WhiteElo "1835"]
[BlackElo "2127"]
[TimeControl "180+1"]
[EndTime "9:47:03 PST"]
[Termination "cmunda won on time"]

1. e4 {[%clk 0:03:00.9]} 1... c5 {[%clk 0:02:59.2]} 2. c3 {[%clk 0:03:00.7]}
2... d5 {[%clk 0:02:58.9]} 3. exd5 {[%clk 0:03:01.6]} 3... Qxd5 {[%clk
0:02:58.9]} 4. d4 {[%clk 0:03:02.1]} 4... e5 {[%clk 0:02:59.1]} 5. Nf3 {[%clk
0:02:45]} 5... Bg4 {[%clk 0:02:57]} 6. dxe5 {[%clk 0:02:43.9]} 6... Qxd1+ {[%clk
0:02:56.2]} 7. Kxd1 {[%clk 0:02:44.8]} 7... Nc6 {[%clk 0:02:56.2]} 8. Bb5 {[%clk
0:02:42]} 8... O-O-O+ {[%clk 0:02:56]} 9. Nd2 {[%clk 0:02:38.8]} 9... Nxe5
{[%clk 0:02:52.4]} 10. Kc2 {[%clk 0:02:30.8]} 10... Bf5+ {[%clk 0:02:46.3]} 11.
Kb3 {[%clk 0:02:21.8]} 11... Nd3 {[%clk 0:02:36.2]} 12. a4 {[%clk 0:02:08.4]}
12... a6 {[%clk 0:02:35.1]} 13. Bxd3 {[%clk 0:02:07.1]} 13... Bxd3 {[%clk
0:02:34.3]} 14. Nc4 {[%clk 0:02:03.1]} 14... Nf6 {[%clk 0:02:03.8]} 15. Bf4
{[%clk 0:01:44.5]} 15... Nd5 {[%clk 0:01:56.1]} 16. Bg3 {[%clk 0:01:36.4]} 16...
Be7 {[%clk 0:01:45.5]} 17. Nfe5 {[%clk 0:01:34.4]} 17... b5 {[%clk 0:01:39.5]}
18. axb5 {[%clk 0:01:20.3]} 18... axb5 {[%clk 0:01:39.6]} 19. Nxd3 {[%clk
0:01:19]} 19... bxc4+ {[%clk 0:01:35]} 20. Kxc4 {[%clk 0:01:19.9]} 20... Nb6+
{[%clk 0:01:32.8]} 21. Kb5 {[%clk 0:01:18.2]} 21... Rxd3 {[%clk 0:01:19.2]} 22.
Kxb6 {[%clk 0:01:17.4]} 22... Kd7 {[%clk 0:01:00]} 23. Ra7+ {[%clk 0:00:53.4]}
23... Ke8 {[%clk 0:01:00]} 24. Re1 {[%clk 0:00:52.6]} 24... Rd7 {[%clk
0:00:55.7]} 25. Ra8+ {[%clk 0:00:48.5]} 25... Rd8 {[%clk 0:00:56]} 26. Ra7
{[%clk 0:00:42.4]} 26... Rd7 {[%clk 0:00:53.6]} 27. Rc7 {[%clk 0:00:27.3]} 27...
Kd8 {[%clk 0:00:45.5]} 28. Rc6 {[%clk 0:00:13.7]} 28... Re8 {[%clk 0:00:35.6]}
29. Ra1 {[%clk 0:00:13.1]} 29... Bf6 {[%clk 0:00:23.7]} 30. Ra8+ {[%clk
0:00:12.3]} 30... Ke7 {[%clk 0:00:23.8]} 31. Rxe8+ {[%clk 0:00:11]} 31... Kxe8
{[%clk 0:00:24]} 32. Kxc5 {[%clk 0:00:08.7]} 32... Rd2 {[%clk 0:00:21.9]} 33. b4
{[%clk 0:00:03.8]} 33... h5 {[%clk 0:00:22]} 34. Kb5 {[%clk 0:00:03.6]} 34... h4
{[%clk 0:00:22.2]} 35. Bd6 {[%clk 0:00:02.3]} 35... Rxf2 {[%clk 0:00:21.9]} 0-1

[Event "Early-Titled-Tuesday-Blitz-February-20-2024"]
[Site "Chess.com"]
[Date "2024.02.20"]
[Round "9"]
[White "picturesquecheck"]
[Black "manitodeplomo"]
[Result "0-1"]
[WhiteElo "2448"]
[BlackElo "2631"]
[TimeControl "180+1"]
[EndTime "9:47:06 PST"]
[Termination "manitodeplomo won by checkmate"]

1. e4 {[%clk 0:02:59.6]} 1... c5 {[%clk 0:02:58.3]} 2. Nf3 {[%clk 0:02:58.8]}
2... e6 {[%clk 0:02:58.3]} 3. d4 {[%clk 0:02:56.4]} 3... cxd4 {[%clk 0:02:57.8]}
4. Nxd4 {[%clk 0:02:49.2]} 4... a6 {[%clk 0:02:57.7]} 5. c4 {[%clk 0:02:48.6]}
5... Nf6 {[%clk 0:02:57]} 6. Nc3 {[%clk 0:02:44.7]} 6... Qc7 {[%clk 0:02:56.8]}
7. Be2 {[%clk 0:02:43.8]} 7... Bb4 {[%clk 0:02:55.8]} 8. Qd3 {[%clk 0:02:42.7]}
8... d5 {[%clk 0:02:45]} 9. exd5 {[%clk 0:02:34.1]} 9... exd5 {[%clk 0:02:45.9]}
10. O-O {[%clk 0:02:30.7]} 10... dxc4 {[%clk 0:02:38.2]} 11. Qxc4 {[%clk
0:02:29.1]} 11... Qxc4 {[%clk 0:02:35]} 12. Bxc4 {[%clk 0:02:30]} 12... O-O
{[%clk 0:02:34]} 13. Bg5 {[%clk 0:02:27.4]} 13... Bxc3 {[%clk 0:02:28.8]} 14.
Bxf6 {[%clk 0:02:20.8]} 14... Bxb2 {[%clk 0:02:25.6]} 15. Rab1 {[%clk
0:02:16.5]} 15... Bxd4 {[%clk 0:02:14.2]} 16. Bxd4 {[%clk 0:02:15.6]} 16... Nc6
{[%clk 0:02:14.2]} 17. Ba1 {[%clk 0:02:11.5]} 17... Rd8 {[%clk 0:01:59.7]} 18.
Rfe1 {[%clk 0:01:59.4]} 18... b5 {[%clk 0:01:48.2]} 19. Bb3 {[%clk 0:01:39.3]}
19... Na5 {[%clk 0:01:42.3]} 20. Bd1 {[%clk 0:01:29.2]} 20... Be6 {[%clk
0:01:40.7]} 21. a4 {[%clk 0:01:27.7]} 21... Nc4 {[%clk 0:01:04.7]} 22. Bf3
{[%clk 0:01:17.7]} 22... Rab8 {[%clk 0:01:03.2]} 23. axb5 {[%clk 0:01:08.1]}
23... axb5 {[%clk 0:01:04.1]} 24. Rb4 {[%clk 0:00:55.7]} 24... Na3 {[%clk
0:00:46.7]} 25. Be4 {[%clk 0:00:41.1]} 25... Rdc8 {[%clk 0:00:35.9]} 26. Be5
{[%clk 0:00:36.4]} 26... Rb6 {[%clk 0:00:33.4]} 27. Bd4 {[%clk 0:00:27.5]} 27...
Rd6 {[%clk 0:00:32.7]} 28. Bb2 {[%clk 0:00:21.4]} 28... Nc2 {[%clk 0:00:23.3]}
29. Bxc2 {[%clk 0:00:20]} 29... Rxc2 {[%clk 0:00:24.2]} 30. Rxb5 {[%clk
0:00:20]} 30... h6 {[%clk 0:00:23.5]} 31. Rb8+ {[%clk 0:00:19.2]} 31... Kh7
{[%clk 0:00:23]} 32. g3 {[%clk 0:00:19.6]} 32... Rdd2 {[%clk 0:00:22.3]} 33. Be5
{[%clk 0:00:09]} 33... Rxf2 {[%clk 0:00:20.7]} 34. Reb1 {[%clk 0:00:04.2]} 34...
Rg2+ {[%clk 0:00:19.9]} 35. Kf1 {[%clk 0:00:04.8]} 35... Bc4+ {[%clk 0:00:17.9]}
36. Ke1 {[%clk 0:00:05.3]} 36... Rg1# {[%clk 0:00:17.2]} 0-1